[Event "Early-Titled-Tuesday-Blitz-April-23-2024"]
[Site "Chess.com"]
[Date "2024.04.23"]
[Round "1"]
[White "Kirill_Klukin"]
[Black "wild3000"]
[Result "1-0"]
[WhiteElo "2842"]
[BlackElo "2480"]
[TimeControl "180+1"]
[EndTime "8:08:08 PDT"]
[Termination "Kirill_Klukin won by resignation"]

1. d4 {[%clk 0:02:59.5]} 1... Nf6 {[%clk 0:02:59.4]} 2. c4 {[%clk 0:02:59.2]}
2... e6 {[%clk 0:02:58.5]} 3. Nc3 {[%clk 0:02:59.3]} 3... d5 {[%clk 0:02:57.7]}
4. cxd5 {[%clk 0:02:57.9]} 4... exd5 {[%clk 0:02:57.5]} 5. Bg5 {[%clk
0:02:58.6]} 5... Be7 {[%clk 0:02:54.3]} 6. e3 {[%clk 0:02:58.1]} 6... O-O {[%clk
0:02:54.1]} 7. Bd3 {[%clk 0:02:57.9]} 7... c6 {[%clk 0:02:53.3]} 8. Qc2 {[%clk
0:02:57.5]} 8... Nbd7 {[%clk 0:02:51.4]} 9. Nf3 {[%clk 0:02:56.6]} 9... h6
{[%clk 0:02:51.1]} 10. Bf4 {[%clk 0:02:56.7]} 10... Nh5 {[%clk 0:02:44]} 11. Be5
{[%clk 0:02:56.5]} 11... Nxe5 {[%clk 0:02:21.6]} 12. dxe5 {[%clk 0:02:56.4]}
12... g6 {[%clk 0:02:14.3]} 13. h3 {[%clk 0:02:47.8]} 13... Ng7 {[%clk
0:02:09.6]} 14. g4 {[%clk 0:02:47.8]} 14... Bb4 {[%clk 0:01:55]} 15. O-O-O
{[%clk 0:02:47.2]} 15... Qa5 {[%clk 0:01:45.2]} 16. Nd4 {[%clk 0:02:25.4]} 16...
Bxc3 {[%clk 0:01:32.3]} 17. Qxc3 {[%clk 0:02:01.7]} 17... Qxc3+ {[%clk
0:01:31.8]} 18. bxc3 {[%clk 0:02:02]} 18... Re8 {[%clk 0:01:22.7]} 19. f4 {[%clk
0:02:01.2]} 19... a6 {[%clk 0:01:12.1]} 20. Kd2 {[%clk 0:01:58.7]} 20... Bd7
{[%clk 0:01:09.2]} 21. Nb3 {[%clk 0:01:53.5]} 21... b6 {[%clk 0:01:07.3]} 22. e4
{[%clk 0:01:47.6]} 22... Be6 {[%clk 0:00:40]} 23. Nd4 {[%clk 0:01:33.6]} 23...
Rac8 {[%clk 0:00:32.6]} 24. Rhf1 {[%clk 0:01:14]} 24... dxe4 {[%clk 0:00:31.7]}
25. Nxe6 {[%clk 0:01:02]} 25... Nxe6 {[%clk 0:00:31.1]} 26. Bxe4 {[%clk
0:01:02.3]} 26... Nc5 {[%clk 0:00:29.3]} 27. Bg2 {[%clk 0:00:57.6]} 27... g5
{[%clk 0:00:25.2]} 28. fxg5 {[%clk 0:00:53.6]} 28... hxg5 {[%clk 0:00:25.3]} 29.
Rf5 {[%clk 0:00:54]} 29... Red8+ {[%clk 0:00:25.2]} 30. Kc2 {[%clk 0:00:53.8]}
30... Rxd1 {[%clk 0:00:25.2]} 31. Kxd1 {[%clk 0:00:54.7]} 31... Ne6 {[%clk
0:00:25.6]} 32. Rf2 {[%clk 0:00:50.8]} 32... b5 {[%clk 0:00:23.6]} 33. Kc2
{[%clk 0:00:49]} 33... a5 {[%clk 0:00:23.7]} 34. Rd2 {[%clk 0:00:47.1]} 34...
Nf4 {[%clk 0:00:22.7]} 35. Bf1 {[%clk 0:00:32.6]} 35... Re8 {[%clk 0:00:21.5]}
36. Rd6 {[%clk 0:00:31.4]} 36... Rxe5 {[%clk 0:00:21.1]} 37. Rxc6 {[%clk
0:00:31.9]} 37... b4 {[%clk 0:00:21.1]} 38. cxb4 {[%clk 0:00:29.9]} 38... axb4
{[%clk 0:00:22]} 39. Rc7 {[%clk 0:00:30.5]} 39... Re4 {[%clk 0:00:20.7]} 40. Bc4
{[%clk 0:00:26.6]} 40... Ne6 {[%clk 0:00:18.6]} 41. Bxe6 {[%clk 0:00:25.4]}
41... Rxe6 {[%clk 0:00:18.6]} 42. Kb3 {[%clk 0:00:24]} 42... Re3+ {[%clk
0:00:17.7]} 43. Kxb4 {[%clk 0:00:24.4]} 43... Rxh3 {[%clk 0:00:17.9]} 44. a4
{[%clk 0:00:25.1]} 44... f5 {[%clk 0:00:14.3]} 45. a5 {[%clk 0:00:16.4]} 45...
Rh4 {[%clk 0:00:11.5]} 46. a6 {[%clk 0:00:15.7]} 46... Rxg4+ {[%clk 0:00:11.6]}
47. Rc4 {[%clk 0:00:16.5]} 47... Rg1 {[%clk 0:00:09.9]} 48. a7 {[%clk 0:00:17]}
48... Ra1 {[%clk 0:00:08.6]} 49. Rc8+ {[%clk 0:00:17.7]} 49... Kg7 {[%clk
0:00:08.8]} 50. a8=Q {[%clk 0:00:18.6]} 50... Rxa8 {[%clk 0:00:08.8]} 51. Rxa8
{[%clk 0:00:19.5]} 51... Kf6 {[%clk 0:00:08.8]} 52. Kc3 {[%clk 0:00:20.1]} 52...
g4 {[%clk 0:00:09.2]} 53. Kd3 {[%clk 0:00:20.2]} 53... Kg5 {[%clk 0:00:10.1]}
54. Ke3 {[%clk 0:00:20.6]} 54... Kh4 {[%clk 0:00:08.3]} 55. Kf4 {[%clk
0:00:20.8]} 55... Kh3 {[%clk 0:00:08.4]} 56. Rg8 {[%clk 0:00:21.4]} 56... Kg2
{[%clk 0:00:07.2]} 57. Kxf5 {[%clk 0:00:21.2]} 57... g3 {[%clk 0:00:07.1]} 58.
Kf4 {[%clk 0:00:21.8]} 58... Kh2 {[%clk 0:00:07.2]} 59. Rxg3 {[%clk 0:00:22.4]}
1-0

[Event "Early-Titled-Tuesday-Blitz-April-23-2024"]
[Site "Chess.com"]
[Date "2024.04.23"]
[Round "1"]
[White "Manukyan_Artak"]
[Black "Rakhmanov_Aleksandr"]
[Result "0-1"]
[WhiteElo "2486"]
[BlackElo "2864"]
[TimeControl "180+1"]
[EndTime "8:08:09 PDT"]
[Termination "Rakhmanov_Aleksandr won by resignation"]

1. e4 {[%clk 0:02:57]} 1... d5 {[%clk 0:02:39.4]} 2. exd5 {[%clk 0:02:54.5]}
2... c6 {[%clk 0:02:21.7]} 3. d6 {[%clk 0:02:49.7]} 3... Qxd6 {[%clk 0:02:20.1]}
4. d4 {[%clk 0:02:49.5]} 4... e5 {[%clk 0:02:20.3]} 5. dxe5 {[%clk 0:02:49]}
5... Qxe5+ {[%clk 0:02:16.6]} 6. Qe2 {[%clk 0:02:45.4]} 6... Nd7 {[%clk
0:02:13.9]} 7. Nf3 {[%clk 0:02:43.2]} 7... Qxe2+ {[%clk 0:02:13.9]} 8. Bxe2
{[%clk 0:02:44.1]} 8... Ngf6 {[%clk 0:02:14.6]} 9. Nc3 {[%clk 0:02:42.5]} 9...
Bb4 {[%clk 0:02:13.7]} 10. Bd2 {[%clk 0:02:40.9]} 10... O-O {[%clk 0:02:13.5]}
11. O-O-O {[%clk 0:02:39]} 11... Re8 {[%clk 0:02:07.3]} 12. Rhe1 {[%clk
0:02:29.2]} 12... Nf8 {[%clk 0:01:53.8]} 13. h3 {[%clk 0:02:21.2]} 13... Bf5
{[%clk 0:01:46.8]} 14. Bc4 {[%clk 0:02:14.7]} 14... Be6 {[%clk 0:01:30.5]} 15.
Bd3 {[%clk 0:02:00.8]} 15... Rad8 {[%clk 0:01:25]} 16. Ng5 {[%clk 0:01:59.8]}
16... h6 {[%clk 0:01:04.6]} 17. Nxe6 {[%clk 0:01:57.8]} 17... Nxe6 {[%clk
0:01:05.5]} 18. g3 {[%clk 0:01:26.9]} 18... Ng5 {[%clk 0:00:36.1]} 19. Bxg5
{[%clk 0:01:17]} 19... hxg5 {[%clk 0:00:14.8]} 20. Rxe8+ {[%clk 0:01:08.7]}
20... Rxe8 {[%clk 0:00:15.7]} 21. Ne2 {[%clk 0:00:57.8]} 21... Bc5 {[%clk
0:00:13.4]} 22. Rf1 {[%clk 0:00:55.4]} 22... g6 {[%clk 0:00:13.1]} 23. Kd1
{[%clk 0:00:54.4]} 23... Kg7 {[%clk 0:00:12.9]} 24. Nc3 {[%clk 0:00:50.2]} 24...
Rh8 {[%clk 0:00:08.7]} 25. Ne4 {[%clk 0:00:48]} 25... Nxe4 {[%clk 0:00:07.6]}
26. Bxe4 {[%clk 0:00:48.9]} 26... Rxh3 {[%clk 0:00:07.3]} 27. Ke2 {[%clk
0:00:45.9]} 27... Rh2 {[%clk 0:00:06.4]} 28. g4 {[%clk 0:00:31.9]} 28... Kf6
{[%clk 0:00:06.5]} 29. Kf3 {[%clk 0:00:21]} 29... Ke5 {[%clk 0:00:05.6]} 30. Bd3
{[%clk 0:00:21.4]} 30... f5 {[%clk 0:00:05.2]} 31. Re1+ {[%clk 0:00:18.7]} 31...
Kf6 {[%clk 0:00:05.2]} 32. Re2 {[%clk 0:00:19.2]} 32... Rh3+ {[%clk 0:00:04.4]}
33. Kg2 {[%clk 0:00:19]} 33... fxg4 {[%clk 0:00:05.1]} 34. b4 {[%clk 0:00:14.9]}
34... Bxb4 {[%clk 0:00:04.1]} 35. Re4 {[%clk 0:00:15.2]} 35... Bd6 {[%clk
0:00:03.7]} 36. Rxg4 {[%clk 0:00:15.2]} 36... Rh2+ {[%clk 0:00:04.2]} 37. Kf1
{[%clk 0:00:15.4]} 37... Bf4 {[%clk 0:00:04.2]} 38. Rg2 {[%clk 0:00:11.2]} 38...
Rh7 {[%clk 0:00:03.3]} 39. Ke2 {[%clk 0:00:11]} 39... Re7+ {[%clk 0:00:03.2]}
40. Kf3 {[%clk 0:00:10.5]} 40... Re1 {[%clk 0:00:03.3]} 41. a4 {[%clk
0:00:09.4]} 41... a5 {[%clk 0:00:02.9]} 42. Rg4 {[%clk 0:00:04.7]} 42... Ra1
{[%clk 0:00:03.1]} 43. Rg2 {[%clk 0:00:03.8]} 43... Rxa4 {[%clk 0:00:03.2]} 44.
Rg1 {[%clk 0:00:04.3]} 44... Rb4 {[%clk 0:00:03.9]} 45. Rh1 {[%clk 0:00:03.7]}
45... a4 {[%clk 0:00:04]} 46. Rh6 {[%clk 0:00:04.2]} 46... b5 {[%clk 0:00:04.1]}
47. Rxg6+ {[%clk 0:00:04.7]} 47... Ke5 {[%clk 0:00:04.7]} 48. Rxc6 {[%clk
0:00:04.9]} 48... a3 {[%clk 0:00:04.2]} 49. Ra6 {[%clk 0:00:04.9]} 49... Ra4
{[%clk 0:00:04.7]} 50. Rxa4 {[%clk 0:00:05.2]} 50... bxa4 {[%clk 0:00:05.6]} 51.
Bc4 {[%clk 0:00:05.8]} 51... Kd4 {[%clk 0:00:06.3]} 52. Be6 {[%clk 0:00:05.1]}
52... Kc3 {[%clk 0:00:06.9]} 53. Ke2 {[%clk 0:00:05.3]} 53... Kxc2 {[%clk
0:00:06.6]} 54. Ke1 {[%clk 0:00:03.8]} 54... Kb2 {[%clk 0:00:07]} 55. Kd1 {[%clk
0:00:04.2]} 55... a2 {[%clk 0:00:07.6]} 0-1

[Event "Early-Titled-Tuesday-Blitz-April-23-2024"]
[Site "Chess.com"]
[Date "2024.04.23"]
[Round "1"]
[White "ProtectiveCarrot"]
[Black "Alexei_Gubajdullin"]
[Result "1-0"]
[WhiteElo "2332"]
[BlackElo "2617"]
[TimeControl "180+1"]
[EndTime "8:08:10 PDT"]
[Termination "ProtectiveCarrot won by checkmate"]

1. d4 {[%clk 0:03:00.9]} 1... Nf6 {[%clk 0:02:58.2]} 2. Nc3 {[%clk 0:02:58.8]}
2... g6 {[%clk 0:02:56.7]} 3. e4 {[%clk 0:02:58]} 3... d6 {[%clk 0:02:57.1]} 4.
Nf3 {[%clk 0:02:58.3]} 4... Bg7 {[%clk 0:02:57.4]} 5. Be2 {[%clk 0:02:58.7]}
5... O-O {[%clk 0:02:56.3]} 6. O-O {[%clk 0:02:59.3]} 6... Nc6 {[%clk
0:02:56.7]} 7. d5 {[%clk 0:02:58.9]} 7... Nb8 {[%clk 0:02:56.8]} 8. Be3 {[%clk
0:02:56.6]} 8... Bg4 {[%clk 0:02:56.8]} 9. a4 {[%clk 0:02:52.8]} 9... a5 {[%clk
0:02:56.3]} 10. Re1 {[%clk 0:02:44.8]} 10... Bxf3 {[%clk 0:02:52.9]} 11. Bxf3
{[%clk 0:02:44.5]} 11... Nfd7 {[%clk 0:02:53]} 12. Be2 {[%clk 0:02:38.1]} 12...
c6 {[%clk 0:02:51]} 13. Qd2 {[%clk 0:02:34.7]} 13... Re8 {[%clk 0:02:49.7]} 14.
f4 {[%clk 0:02:27.4]} 14... Na6 {[%clk 0:02:48.8]} 15. Bc4 {[%clk 0:02:20.2]}
15... Ndc5 {[%clk 0:02:43.5]} 16. Bd4 {[%clk 0:02:02.5]} 16... Bxd4+ {[%clk
0:02:39.2]} 17. Qxd4 {[%clk 0:02:03.4]} 17... Qb6 {[%clk 0:02:39.3]} 18. Kh1
{[%clk 0:01:59.1]} 18... Nxa4 {[%clk 0:02:34.6]} 19. Qd2 {[%clk 0:01:50]} 19...
Nxb2 {[%clk 0:02:22.3]} 20. Ba2 {[%clk 0:01:43.2]} 20... a4 {[%clk 0:02:18.8]}
21. e5 {[%clk 0:01:37.4]} 21... a3 {[%clk 0:02:09]} 22. exd6 {[%clk 0:01:13.6]}
22... exd6 {[%clk 0:02:08.5]} 23. Ne4 {[%clk 0:01:14.2]} 23... Rxe4 {[%clk
0:01:49.3]} 24. Rxe4 {[%clk 0:01:13.4]} 24... Nc5 {[%clk 0:01:44.5]} 25. Re7
{[%clk 0:01:08.6]} 25... Rf8 {[%clk 0:01:41.5]} 26. Rae1 {[%clk 0:00:46.8]}
26... Qd8 {[%clk 0:01:23.7]} 27. Qc3 {[%clk 0:00:38.6]} 27... Nd1 {[%clk
0:01:12.1]} 28. Qf6 {[%clk 0:00:31.5]} 28... Nf2+ {[%clk 0:01:11.3]} 29. Kg1
{[%clk 0:00:31.4]} 29... Nce4 {[%clk 0:01:05.4]} 30. Qh4 {[%clk 0:00:22.5]}
30... g5 {[%clk 0:00:52.5]} 31. fxg5 {[%clk 0:00:22.2]} 31... Qxe7 {[%clk
0:00:52.6]} 32. Qxf2 {[%clk 0:00:23.1]} 32... cxd5 {[%clk 0:00:48.1]} 33. Bxd5
{[%clk 0:00:20]} 33... Nxf2 {[%clk 0:00:42.6]} 34. Rxe7 {[%clk 0:00:19.8]} 34...
Ng4 {[%clk 0:00:41]} 35. Rxb7 {[%clk 0:00:19.3]} 35... Ne5 {[%clk 0:00:26.5]}
36. Ra7 {[%clk 0:00:18.6]} 36... Rc8 {[%clk 0:00:25.9]} 37. c4 {[%clk
0:00:12.3]} 37... Kg7 {[%clk 0:00:20.7]} 38. h4 {[%clk 0:00:09.9]} 38... Kg6
{[%clk 0:00:20.7]} 39. Kh2 {[%clk 0:00:08.4]} 39... Kh5 {[%clk 0:00:16.8]} 40.
Kh3 {[%clk 0:00:07.8]} 40... Kg6 {[%clk 0:00:16.6]} 41. Kg3 {[%clk 0:00:03.3]}
41... f6 {[%clk 0:00:16.2]} 42. Be4+ {[%clk 0:00:02.3]} 42... f5 {[%clk
0:00:16]} 43. Bd5 {[%clk 0:00:02.7]} 43... Rf8 {[%clk 0:00:12.4]} 44. Kf4 {[%clk
0:00:02]} 44... Nd3+ {[%clk 0:00:12]} 45. Kg3 {[%clk 0:00:02]} 45... f4+ {[%clk
0:00:12]} 46. Kg4 {[%clk 0:00:02.3]} 46... Ne5+ {[%clk 0:00:12.2]} 47. Kh3
{[%clk 0:00:02]} 47... f3 {[%clk 0:00:12.5]} 48. gxf3 {[%clk 0:00:01.9]} 48...
Nxf3 {[%clk 0:00:12.8]} 49. Kg4 {[%clk 0:00:01.6]} 49... Ne5+ {[%clk 0:00:12.9]}
50. Kg3 {[%clk 0:00:02.5]} 50... Rf3+ {[%clk 0:00:13]} 51. Bxf3 {[%clk
0:00:01.9]} 51... Nxc4 {[%clk 0:00:11.2]} 52. Ra4 {[%clk 0:00:01.7]} 52... Nb2
{[%clk 0:00:10.8]} 53. Rxa3 {[%clk 0:00:02]} 53... Nc4 {[%clk 0:00:11.2]} 54.
Ra7 {[%clk 0:00:02.5]} 54... h6 {[%clk 0:00:11]} 55. Be4+ {[%clk 0:00:02.9]}
55... Kh5 {[%clk 0:00:11.1]} 56. g6 {[%clk 0:00:02.1]} 56... Nd2 {[%clk
0:00:09.8]} 57. Ra5+ {[%clk 0:00:02.4]} 57... d5 {[%clk 0:00:09]} 58. Rxd5#
{[%clk 0:00:03]} 1-0

[Event "Early-Titled-Tuesday-Blitz-April-23-2024"]
[Site "Chess.com"]
[Date "2024.04.23"]
[Round "1"]
[White "manitodeplomo"]
[Black "northridgehawk"]
[Result "1/2-1/2"]
[WhiteElo "2640"]
[BlackElo "2343"]
[TimeControl "180+1"]
[EndTime "8:08:13 PDT"]
[Termination "Game drawn - insufficient material"]

1. d4 {[%clk 0:02:59.2]} 1... Nf6 {[%clk 0:02:54.4]} 2. c4 {[%clk 0:02:56]} 2...
g6 {[%clk 0:02:48.9]} 3. Nc3 {[%clk 0:02:54.5]} 3... d5 {[%clk 0:02:46]} 4. Bf4
{[%clk 0:02:52.2]} 4... Bg7 {[%clk 0:02:45.6]} 5. e3 {[%clk 0:02:52.5]} 5... O-O
{[%clk 0:02:41.8]} 6. Rc1 {[%clk 0:02:53]} 6... Be6 {[%clk 0:02:41]} 7. c5
{[%clk 0:02:50]} 7... c6 {[%clk 0:02:37.5]} 8. h3 {[%clk 0:02:47]} 8... b6
{[%clk 0:02:35.9]} 9. b4 {[%clk 0:02:46.6]} 9... a5 {[%clk 0:02:34.9]} 10. a3
{[%clk 0:02:45.9]} 10... axb4 {[%clk 0:02:35.2]} 11. axb4 {[%clk 0:02:45.4]}
11... bxc5 {[%clk 0:02:36.1]} 12. bxc5 {[%clk 0:02:44.7]} 12... Bc8 {[%clk
0:02:35.3]} 13. Nf3 {[%clk 0:02:43.6]} 13... Nfd7 {[%clk 0:02:35.5]} 14. Be2
{[%clk 0:02:39.4]} 14... Re8 {[%clk 0:02:33.6]} 15. O-O {[%clk 0:02:37.4]} 15...
e5 {[%clk 0:02:24]} 16. Bh2 {[%clk 0:02:36.8]} 16... Ba6 {[%clk 0:02:21.8]} 17.
Bxa6 {[%clk 0:02:28.1]} 17... Nxa6 {[%clk 0:02:22.7]} 18. Qb3 {[%clk 0:02:20.1]}
18... Qc7 {[%clk 0:01:57.5]} 19. Rb1 {[%clk 0:01:59.6]} 19... Reb8 {[%clk
0:01:54.2]} 20. Qc2 {[%clk 0:01:59.2]} 20... Nb4 {[%clk 0:01:52.3]} 21. Qd2
{[%clk 0:01:58.9]} 21... Qa5 {[%clk 0:01:33.1]} 22. Rb3 {[%clk 0:01:43.6]} 22...
Na6 {[%clk 0:01:23.7]} 23. Rfb1 {[%clk 0:01:30.4]} 23... Nc7 {[%clk 0:01:17.6]}
24. Rxb8+ {[%clk 0:01:19.7]} 24... Rxb8 {[%clk 0:01:17.5]} 25. Rxb8+ {[%clk
0:01:18.4]} 25... Nxb8 {[%clk 0:01:18.1]} 26. Bxe5 {[%clk 0:01:05.2]} 26... Bxe5
{[%clk 0:01:13.4]} 27. Nxe5 {[%clk 0:01:06.1]} 27... Ne6 {[%clk 0:01:10.2]} 28.
Qb2 {[%clk 0:01:00.5]} 28... Qc7 {[%clk 0:01:05]} 29. Qb6 {[%clk 0:00:52.2]}
29... Qc8 {[%clk 0:01:03.4]} 30. Na2 {[%clk 0:00:45.8]} 30... f6 {[%clk
0:00:59.5]} 31. Nd3 {[%clk 0:00:42.8]} 31... Nd7 {[%clk 0:00:59.1]} 32. Qa7
{[%clk 0:00:40.9]} 32... Qc7 {[%clk 0:00:53.2]} 33. Qxc7 {[%clk 0:00:39.6]}
33... Nxc7 {[%clk 0:00:54.1]} 34. Ndb4 {[%clk 0:00:35.9]} 34... Nb8 {[%clk
0:00:54.4]} 35. Nc3 {[%clk 0:00:35.8]} 35... Kf7 {[%clk 0:00:53.8]} 36. f3
{[%clk 0:00:34.8]} 36... Ke6 {[%clk 0:00:54.3]} 37. Kf2 {[%clk 0:00:34.6]} 37...
f5 {[%clk 0:00:54.4]} 38. g4 {[%clk 0:00:34.6]} 38... h6 {[%clk 0:00:50.9]} 39.
Kg3 {[%clk 0:00:34.4]} 39... Ne8 {[%clk 0:00:45.6]} 40. gxf5+ {[%clk 0:00:33.9]}
40... Kxf5 {[%clk 0:00:46.5]} 41. e4+ {[%clk 0:00:32.8]} 41... dxe4 {[%clk
0:00:45.3]} 42. fxe4+ {[%clk 0:00:33.5]} 42... Ke6 {[%clk 0:00:45.9]} 43. h4
{[%clk 0:00:31.7]} 43... Nf6 {[%clk 0:00:45.7]} 44. Kf4 {[%clk 0:00:31.6]} 44...
Nh5+ {[%clk 0:00:45.6]} 45. Kg4 {[%clk 0:00:28.3]} 45... Nf6+ {[%clk 0:00:46.1]}
46. Kf3 {[%clk 0:00:28.7]} 46... Nfd7 {[%clk 0:00:45.4]} 47. Nd3 {[%clk
0:00:25.2]} 47... Na6 {[%clk 0:00:43.6]} 48. Ke3 {[%clk 0:00:14.4]} 48... Kf6
{[%clk 0:00:38.5]} 49. Nb2 {[%clk 0:00:07.9]} 49... Nb4 {[%clk 0:00:37.7]} 50.
Nc4 {[%clk 0:00:07.3]} 50... g5 {[%clk 0:00:36]} 51. hxg5+ {[%clk 0:00:06.5]}
51... Kxg5 {[%clk 0:00:36.9]} 52. Na5 {[%clk 0:00:05.6]} 52... h5 {[%clk
0:00:36.9]} 53. Ne2 {[%clk 0:00:04]} 53... h4 {[%clk 0:00:36.9]} 54. Kf3 {[%clk
0:00:03.4]} 54... Nf6 {[%clk 0:00:33]} 55. e5 {[%clk 0:00:03]} 55... Nfd5 {[%clk
0:00:32.4]} 56. Ke4 {[%clk 0:00:03]} 56... h3 {[%clk 0:00:32]} 57. Kf3 {[%clk
0:00:03.1]} 57... Kf5 {[%clk 0:00:30.5]} 58. Nc4 {[%clk 0:00:02.9]} 58... h2
{[%clk 0:00:29.4]} 59. Ng3+ {[%clk 0:00:03.2]} 59... Kg5 {[%clk 0:00:28.8]} 60.
Kg2 {[%clk 0:00:03.6]} 60... Kf4 {[%clk 0:00:28.6]} 61. Ne2+ {[%clk 0:00:03.6]}
61... Kg4 {[%clk 0:00:27.4]} 62. Kxh2 {[%clk 0:00:03.9]} 62... Nc2 {[%clk
0:00:27.6]} 63. Nc1 {[%clk 0:00:03.5]} 63... Kf3 {[%clk 0:00:27.6]} 64. Nd3
{[%clk 0:00:03.7]} 64... Ke4 {[%clk 0:00:28.5]} 65. Ndb2 {[%clk 0:00:03.3]}
65... Kxd4 {[%clk 0:00:27.9]} 66. e6 {[%clk 0:00:04.1]} 66... Kxc5 {[%clk
0:00:28]} 67. Kg3 {[%clk 0:00:04]} 67... Nd4 {[%clk 0:00:27.6]} 68. Ne5 {[%clk
0:00:03.7]} 68... Nxe6 {[%clk 0:00:27.7]} 69. Nxc6 {[%clk 0:00:04.3]} 69... Kxc6
{[%clk 0:00:28.3]} 70. Kg2 {[%clk 0:00:04.3]} 70... Kd6 {[%clk 0:00:29.2]} 71.
Nd3 {[%clk 0:00:04.4]} 71... Nf6 {[%clk 0:00:29.1]} 72. Ne5 {[%clk 0:00:04.4]}
72... Kxe5 {[%clk 0:00:30]} 1/2-1/2

[Event "Early-Titled-Tuesday-Blitz-April-23-2024"]
[Site "Chess.com"]
[Date "2024.04.23"]
[Round "1"]
[White "Polish_fighter3000"]
[Black "toninhojit"]
[Result "1-0"]
[WhiteElo "3103"]
[BlackElo "2553"]
[TimeControl "180+1"]
[EndTime "8:08:16 PDT"]
[Termination "Polish_fighter3000 won on time"]

1. b3 {[%clk 0:03:00.6]} 1... d5 {[%clk 0:02:56]} 2. Bb2 {[%clk 0:03:01.5]} 2...
Nf6 {[%clk 0:02:52.9]} 3. g3 {[%clk 0:02:55.3]} 3... g6 {[%clk 0:02:51.8]} 4.
Nf3 {[%clk 0:02:50.4]} 4... Bg7 {[%clk 0:02:51.9]} 5. c4 {[%clk 0:02:51]} 5...
O-O {[%clk 0:02:51.4]} 6. cxd5 {[%clk 0:02:49.3]} 6... Nxd5 {[%clk 0:02:52.3]}
7. Bxg7 {[%clk 0:02:49.3]} 7... Kxg7 {[%clk 0:02:53.2]} 8. Bg2 {[%clk
0:02:49.6]} 8... b6 {[%clk 0:02:52.9]} 9. O-O {[%clk 0:02:47.8]} 9... Bb7 {[%clk
0:02:53.2]} 10. d4 {[%clk 0:02:41.3]} 10... Nf6 {[%clk 0:02:47.4]} 11. Nc3
{[%clk 0:02:37.1]} 11... Ne4 {[%clk 0:02:44.9]} 12. Nxe4 {[%clk 0:02:23]} 12...
Bxe4 {[%clk 0:02:45.8]} 13. Qd2 {[%clk 0:02:23.1]} 13... Qd5 {[%clk 0:02:26.2]}
14. Rac1 {[%clk 0:02:14.9]} 14... c6 {[%clk 0:02:22.6]} 15. Rfd1 {[%clk
0:02:09.2]} 15... Nd7 {[%clk 0:02:22.4]} 16. Qf4 {[%clk 0:01:57.9]} 16... Rac8
{[%clk 0:02:17.7]} 17. Ne1 {[%clk 0:01:43.7]} 17... Bxg2 {[%clk 0:02:16.9]} 18.
Nxg2 {[%clk 0:01:44.6]} 18... Nf6 {[%clk 0:02:12.8]} 19. Ne3 {[%clk 0:01:33.8]}
19... Qa5 {[%clk 0:02:09.7]} 20. Rc2 {[%clk 0:01:30.1]} 20... Rfd8 {[%clk
0:02:03.8]} 21. Rdc1 {[%clk 0:01:22.3]} 21... Qb4 {[%clk 0:01:57.1]} 22. Rc4
{[%clk 0:01:15.6]} 22... Qd6 {[%clk 0:01:45.7]} 23. Qxd6 {[%clk 0:00:58.9]}
23... Rxd6 {[%clk 0:01:46.6]} 24. Nc2 {[%clk 0:00:59.2]} 24... Rcd8 {[%clk
0:01:15.8]} 25. e3 {[%clk 0:00:49.7]} 25... Nd7 {[%clk 0:01:12.7]} 26. b4 {[%clk
0:00:44.2]} 26... e5 {[%clk 0:01:03.4]} 27. Kg2 {[%clk 0:00:43.8]} 27... b5
{[%clk 0:00:45]} 28. Rc3 {[%clk 0:00:42.8]} 28... Nb6 {[%clk 0:00:29.8]} 29.
dxe5 {[%clk 0:00:25.8]} 29... Rd2 {[%clk 0:00:30.7]} 30. Rxc6 {[%clk 0:00:25.1]}
30... Nc4 {[%clk 0:00:26.6]} 31. Rc7 {[%clk 0:00:17.6]} 31... Nxe5 {[%clk
0:00:17.3]} 32. Nd4 {[%clk 0:00:18.1]} 32... Kf6 {[%clk 0:00:13.7]} 33. R1c2
{[%clk 0:00:18]} 33... Rxc2 {[%clk 0:00:10.8]} 34. Rxc2 {[%clk 0:00:18.9]} 34...
a6 {[%clk 0:00:09.6]} 35. Rc7 {[%clk 0:00:10]} 35... Ra8 {[%clk 0:00:08.1]} 36.
f4 {[%clk 0:00:07.6]} 36... Nc4 {[%clk 0:00:07.8]} 37. Kf3 {[%clk 0:00:07.3]}
37... Re8 {[%clk 0:00:08.5]} 38. Nc2 {[%clk 0:00:04.4]} 38... Rd8 {[%clk
0:00:09.1]} 39. Rc6+ {[%clk 0:00:04.4]} 39... Kg7 {[%clk 0:00:09.2]} 40. Nd4
{[%clk 0:00:04.6]} 40... Re8 {[%clk 0:00:09.2]} 41. Nc2 {[%clk 0:00:04.8]} 41...
Rd8 {[%clk 0:00:09.5]} 42. Rxa6 {[%clk 0:00:04.8]} 42... Rd2 {[%clk 0:00:09.4]}
43. Nd4 {[%clk 0:00:05.2]} 43... Rxh2 {[%clk 0:00:07.2]} 44. Ke4 {[%clk
0:00:05.7]} 44... Nd2+ {[%clk 0:00:06.4]} 45. Kd3 {[%clk 0:00:03.9]} 45... Nf1
{[%clk 0:00:07]} 46. g4 {[%clk 0:00:04.1]} 46... Rd2+ {[%clk 0:00:07]} 47. Ke4
{[%clk 0:00:04.5]} 47... f5+ {[%clk 0:00:07.2]} 48. gxf5 {[%clk 0:00:04.5]}
48... Ng3+ {[%clk 0:00:06.4]} 49. Ke5 {[%clk 0:00:04.9]} 49... Rd3 {[%clk
0:00:04.7]} 50. f6+ {[%clk 0:00:04.1]} 50... Kh6 {[%clk 0:00:04.3]} 51. f5
{[%clk 0:00:03.2]} 51... Rxe3+ {[%clk 0:00:04.2]} 52. Kf4 {[%clk 0:00:03.7]}
52... Rd3 {[%clk 0:00:04.6]} 53. f7 {[%clk 0:00:03.9]} 53... Nh5+ {[%clk
0:00:04.9]} 54. Ke5 {[%clk 0:00:04]} 54... Kg7 {[%clk 0:00:05.3]} 55. Ra7 {[%clk
0:00:04.2]} 55... Re3+ {[%clk 0:00:04.6]} 56. Kd6 {[%clk 0:00:04.8]} 56... Nf6
{[%clk 0:00:03.1]} 57. Ne6+ {[%clk 0:00:04.8]} 57... Kh6 {[%clk 0:00:01.9]} 58.
f8=Q+ {[%clk 0:00:04.8]} 1-0